fUST/lending_fUST_20260206
["ID","MTS","AMOUNT","RATE_DAILY","PERIOD"]
[404628911,1770353441567,-1000.0,0.0002099,2]
[404628912,1770353441576,-1000.0,0.0002099,2]
[404628913,1770353441586,-771.889361,0.0002099,2]
[404628914,1770353441596,-500.0,0.00020999,2]
[404628915,1770353441605,-237.7559768,0.00020999,2]
[404628916,1770353441614,-10000.0,0.00021,5]
[404628917,1770353441623,-1567.29087265,0.00021,10]
[404628918,1770353441633,-3000.0,0.00021,2]
[404628919,1770353441643,-3000.0,0.0002101,2]
[404628920,1770353441652,-3000.0,0.0002102,2]
[404628921,1770353441662,-3000.0,0.0002103,2]
[404628922,1770353441671,-13379.22,0.0002103,10]
[404628923,1770353441681,-3000.0,0.0002104,2]
[404628924,1770353441690,-3000.0,0.0002105,2]
[404628925,1770353441700,-3000.0,0.0002106,2]
[404628926,1770353441844,-3000.0,0.0002107,2]
[404628927,1770353441855,-3000.0,0.0002108,2]
[404628928,1770353441864,-3000.0,0.0002109,2]
[404628929,1770353441873,-3000.0,0.000211,2]
[404628930,1770353441883,-3000.0,0.0002111,2]
[404628931,1770353441892,-3000.0,0.0002112,2]
[404628932,1770353441902,-1503.19610638,0.0002113,2]
[404628941,1770353444977,-1496.80389362,0.0002113,2]
[404628942,1770353444987,-3000.0,0.0002114,2]
[404628943,1770353444996,-707.94653978,0.0002115,2]
[404628946,1770353446378,-2292.05346022,0.0002115,2]
[404628947,1770353446388,-3000.0,0.0002116,2]
[404628948,1770353446397,-3959.796793,0.0002117,2]
[404628949,1770353446406,-798.580381,0.00021552,2]
[404628950,1770353446416,-287.85565154,0.00021917,2]
[404628951,1770353446425,-465.94,0.00022,7]
[404628952,1770353446434,-336.0,0.00022,2]
[404628953,1770353446443,-336.0,0.00022192,7]
[404628954,1770353446452,-1000.0,0.000223,2]
[404628955,1770353446461,-1000.0,0.000223,2]
[404628956,1770353446471,-1000.0,0.000223,2]
[404628957,1770353446480,-1000.0,0.000223,2]
[404628958,1770353446489,-1000.0,0.000223,2]
[404628959,1770353446498,-1000.0,0.000223,2]
[404628960,1770353446507,-1000.0,0.000223,2]
[404628961,1770353446516,-1000.0,0.000223,2]
[404628962,1770353446525,-1000.0,0.000223,2]
[404628963,1770353446535,-798.580381,0.00022389,2]
[404628964,1770353446544,-1000.0,0.000224,2]
[404628965,1770353446553,-269.71707323,0.00022455,2]
[404628966,1770353446562,-336.0,0.00022466,7]
[404628967,1770353446571,-1913.56,0.000225,14]
[404628968,1770353446580,-336.0,0.0002274,7]
[404628969,1770353446590,-150.204,0.00022857,2]
[404628970,1770353446599,-150.243,0.00022857,2]
[404628971,1770353446609,-150.241,0.00022857,2]
[404628972,1770353446618,-150.567,0.00022857,2]
[404628973,1770353446628,-167.0,0.00023,7]
[404628974,1770353446637,-336.0,0.00023014,7]
[404628975,1770353446647,-336.0,0.00023014,7]
[404628976,1770353446656,-864.0,0.00023014,10]
[404628977,1770353446665,-798.580381,0.00023226,2]
[404628978,1770353446675,-632.0,0.000237,2]
[404628979,1770353446684,-1373.0,0.000237,2]
[404628980,1770353446694,-150.0,0.000237,2]
[404628981,1770353446704,-420.0,0.000237,2]
[404628982,1770353446714,-151.0,0.000238,8]
[404628983,1770353446723,-1006.88740104,0.00024,30]
[404628984,1770353446732,-151.0,0.00024,10]
[404628986,1770353446742,-1041.66666667,0.00024,10]
[404628988,1770353446750,-798.580381,0.00024063,2]
[404628990,1770353446759,-348.0,0.00024164,7]
[404628991,1770353446768,-168.0,0.00024164,7]
[404628992,1770353446777,-336.0,0.00024164,7]
[404628993,1770353446786,-160.0,0.000244,3]
[404628994,1770353446795,-3948.48239248,0.000244,2]
[404628995,1770353446806,-305.41492116,0.00024455,2]
[404628996,1770353446815,-465.94,0.000245,7]
[404628997,1770353446825,-151.0,0.000245,9]
[404628998,1770353446834,-151.0,0.000245,9]
[404628999,1770353446843,-165.0,0.000246,5]
[404629000,1770353446852,-165.0,0.000246,4]
[404629001,1770353446861,-487.0,0.000246,2]
[404629002,1770353446871,-487.0,0.000246,2]
[404629003,1770353446880,-487.0,0.000246,2]
[404629004,1770353446889,-487.0,0.000246,2]
[404629005,1770353446899,-487.0,0.000246,2]
[404629006,1770353446908,-487.0,0.000246,2]
[404629007,1770353446917,-487.0,0.000246,2]
[404629008,1770353446927,-487.0,0.000246,2]
[404629009,1770353446936,-487.0,0.000246,2]
[404629010,1770353446945,-487.0,0.000246,2]
[404629011,1770353446955,-487.0,0.000246,2]
[404629012,1770353446965,-487.0,0.000246,2]
[404629013,1770353446974,-487.0,0.000246,2]
[404629014,1770353446983,-487.0,0.000246,2]
[404629015,1770353446993,-487.0,0.000246,2]
[404629016,1770353447002,-487.0,0.000246,2]
[404629017,1770353447011,-487.0,0.000246,2]
[404629018,1770353447021,-487.0,0.000246,2]
[404629019,1770353447030,-487.0,0.000246,2]
[404629020,1770353447039,-487.0,0.000246,2]
[404629021,1770353447048,-487.0,0.000246,2]
[404629022,1770353447058,-487.0,0.000246,2]
[404629023,1770353447067,-487.0,0.000246,2]
[404629024,1770353447076,-487.0,0.000246,2]
[404629025,1770353447086,-487.0,0.000246,2]
[404629026,1770353447095,-487.0,0.000246,2]
[404629027,1770353447104,-487.0,0.000246,2]
[404629028,1770353447113,-487.0,0.000246,2]
[404629029,1770353447122,-487.0,0.000246,2]
[404629030,1770353447132,-487.0,0.000246,2]
[404629031,1770353447140,-487.0,0.000246,2]
[404629032,1770353447150,-487.0,0.000246,2]
[404629033,1770353447159,-703.98,0.000246,2]
[404629034,1770353447168,-150.0,0.00024658,2]
[404629035,1770353447177,-380.0,0.00024658,2]
[404629036,1770353447187,-1913.56,0.000247,14]
[404629037,1770353447197,-42.81271884,0.00024775,4]
[404629038,1770353447225,-117.18728116,0.00024775,4]
[404629039,1770353447235,-151.0,0.000248,6]
[404629040,1770353447244,-2933.08081432,0.0002489,10]
[404629277,1770354632418,-182.21930048,0.0001957,2]
[404629278,1770354632428,-3088.54483492,0.00019666,2]
[404629281,1770354638436,-918.42826718,0.00019666,2]
[404629282,1770354638547,-2801.11439497,0.00019666,2]
[404629319,1770354680206,6203.0,0.00030137,120]
[404629327,1770354745836,4195.0,0.0003013,120]
[404629352,1770354886755,555.0,0.00030136,120]
[404629370,1770354903743,222.0,0.00030136,120]
[404629375,1770354935259,444.0,0.00030136,120]
[404629471,1770355837709,-925.5204169,0.000189,2]
[404629506,1770355839973,-2524.48863999,0.000189,2]
[404629507,1770355839984,-2000.0,0.0001894,2]
[404629509,1770355839993,-178.57491447,0.00019132,2]
[404629510,1770355840003,-300.0,0.00020058,2]
[404629512,1770355840012,-300.0,0.00020058,2]
[404629514,1770355840022,-300.0,0.00020058,2]
[404629515,1770355840031,-300.0,0.00020058,2]
[404629516,1770355840040,-300.0,0.00020058,2]
[404629517,1770355840049,-300.0,0.00020058,2]
[404629518,1770355840059,-300.0,0.00020058,2]
[404629519,1770355840068,-300.0,0.00020058,2]
[404629520,1770355840078,-300.0,0.00020058,2]
[404629521,1770355840087,-300.0,0.00020058,2]
[404629522,1770355840096,-300.0,0.00020058,2]
[404629523,1770355840105,-300.0,0.00020058,2]
[404629524,1770355840114,-300.0,0.00020058,2]
[404629525,1770355840123,-300.0,0.00020058,2]
[404629526,1770355840132,-300.0,0.00020058,2]
[404629527,1770355840142,-1373.0,0.00020131,2]
[404629528,1770355840151,-632.0,0.00020131,2]
[404629529,1770355840160,-150.0,0.00020131,2]
[404629530,1770355840169,-719.0,0.00020131,2]
[404629531,1770355840178,-179.0,0.00020131,2]
[404629532,1770355840188,-420.0,0.00020131,2]
[404629533,1770355840197,-420.0,0.00020131,2]
[404629534,1770355840207,-150.0,0.000204,10]
[404629535,1770355840216,-83.00468507,0.000206,2]
[404629569,1770355846065,-697.99531493,0.000206,2]
[404629570,1770355846075,-1000.0,0.00020831,2]
[404629571,1770355846084,-150.0,0.00021,2]
[404629572,1770355846094,-210.71839908,0.00021132,2]
[404629573,1770355846103,-185.0,0.00021262,2]
[404629574,1770355846113,-837.81069021,0.00021263,2]
[404629575,1770355846124,-1956.40840388,0.00021263,2]
[404629576,1770355846134,-666.0,0.00021263,2]
[404629577,1770355846145,-255.0,0.00021263,2]
[404629578,1770355846154,-207.022,0.00021264,2]
[404629579,1770355846163,-150.0,0.00021264,2]
[404629580,1770355846173,-158.829912,0.00021659,2]
[404629581,1770355846183,-100.80955022,0.00021688,10]
[404630252,1770355900194,-150.0,0.00019697,2]
[404630253,1770355900221,-2158.0,0.00019697,2]
[404630254,1770355900249,-420.0,0.00019697,2]
[404630255,1770355909221,420.0,0.00019697,2]
[404630256,1770355911110,771.26758709,0.00019697,2]
[404630322,1770356661545,1097.466,0.0001505,2]
[404630354,1770356824553,2000.0,0.00030137,120]
[404630433,1770357020803,994.99,0.00030137,120]
[404630444,1770357031836,-3000.0,0.00016548,2]
[404630445,1770357031845,-170.7890482,0.00017923,2]
[404630446,1770357031854,-632.0,0.00019697,2]
[404630447,1770357031864,-1373.0,0.00019697,2]
[404630448,1770357031873,-719.0,0.00019697,2]
[404630449,1770357031882,-420.0,0.00019697,2]
[404630450,1770357031891,-201.53107688,0.00019923,2]
[404630451,1770357031901,-474.950483,0.00020043,2]
[404630452,1770357031911,-300.0,0.0002009,2]
[404630453,1770357031921,-300.0,0.0002009,2]
[404630454,1770357031930,-300.0,0.0002009,2]
[404630455,1770357031939,-300.0,0.0002009,2]
[404630457,1770357031951,-300.0,0.0002009,2]
[404630458,1770357031960,-300.0,0.0002009,2]
[404630460,1770357031970,-300.0,0.0002009,2]
[404630462,1770357031979,-300.0,0.0002009,2]
[404630463,1770357031988,-265.80562524,0.0002009,2]
[404630477,1770357038027,-34.19437476,0.0002009,2]
[404630478,1770357038037,-300.0,0.0002009,2]
[404630479,1770357038047,-100.45871989,0.0002009,2]
[404630524,1770357129250,16679.614835,0.00015,2]
[404630680,1770358072098,348.17370533,0.00030136,120]
[404630775,1770358238082,-1494.0,0.00019512,2]
[404630776,1770358238092,-163.3426457,0.00019605,2]
[404630777,1770358238102,-150.0,0.00019697,2]
[404630778,1770358238112,-150.0,0.00019697,2]
[404630779,1770358238122,-150.0,0.00019697,2]
[404630780,1770358238132,-2158.0,0.00019697,2]
[404630781,1770358238141,-1373.0,0.00019697,2]
[404630782,1770358238151,-420.0,0.00019697,2]
[404630783,1770358238160,-719.0,0.00019697,2]
[404630784,1770358238170,-420.0,0.00019697,2]
[404630785,1770358238181,-179.0,0.00019697,2]
[404630786,1770358238190,-1484.0685876,0.00019838,2]
[404630787,1770358238200,-482.7206671,0.00019838,2]
[404630788,1770358238210,-199.90234033,0.00020037,2]
[404630789,1770358238220,-169.06785003,0.000201,4]
[404630790,1770358238229,-300.0,0.00020491,2]
[404630791,1770358238239,-300.0,0.00020491,2]
[404630792,1770358238248,-300.0,0.00020491,2]
[404630793,1770358238258,-300.0,0.00020491,2]
[404630794,1770358238268,-300.0,0.00020491,2]
[404630795,1770358238277,-300.0,0.00020491,2]
[404630796,1770358238286,-300.0,0.00020491,2]
[404630797,1770358238296,-300.0,0.00020491,2]
[404630798,1770358238306,-300.0,0.00020491,2]
[404630799,1770358238316,-300.0,0.00020491,2]
[404630800,1770358238326,-300.0,0.00020491,2]
[404630801,1770358238335,-300.0,0.00020491,2]
[404630802,1770358238345,-300.0,0.00020491,2]
[404630803,1770358238354,-300.0,0.00020491,2]
[404630804,1770358238364,-300.0,0.00020491,2]
[404630805,1770358238373,-305.347163,0.000207,2]
[404630806,1770358238383,-151.548715,0.00020822,2]
[404630807,1770358238392,-151.548715,0.00020822,2]
[404630808,1770358238402,-151.548715,0.00020822,2]
[404630809,1770358238412,-151.548715,0.00020822,2]
[404630810,1770358238421,-151.548715,0.00020822,2]
[404630811,1770358238435,-151.548715,0.00020822,2]
[404630812,1770358238444,-151.548715,0.00020822,2]
[404630813,1770358238454,-151.548715,0.00020822,2]
[404630814,1770358238463,-151.548715,0.00020822,2]
[404630815,1770358238473,-151.548715,0.00020822,2]
[404630816,1770358238483,-151.548715,0.00020822,2]
[404630817,1770358238492,-151.548715,0.00020822,2]
[404630818,1770358238502,-500.0,0.00020899,2]
[404630819,1770358238511,-600.0,0.000209,2]
[404630820,1770358238520,-563.0,0.000209,2]
[404630821,1770358238530,-6588.17470425,0.000209,2]
[404630822,1770358238539,-4773.831541,0.00021,2]
[404630823,1770358238548,-151.548715,0.00021,2]
[404630824,1770358238558,-151.548715,0.00021,2]
[404630825,1770358238567,-151.548715,0.00021,2]
[404630826,1770358238577,-151.548715,0.00021,2]
[404630827,1770358238586,-158.829912,0.00021442,2]
[404630828,1770358238596,-192.74432193,0.00021605,2]
[404630829,1770358238609,-179.899,0.00021798,2]
[404630830,1770358238619,-168.0,0.00021859,2]
[404630831,1770358238628,-151.548715,0.000219,2]
[404630832,1770358238639,-151.548715,0.000219,2]
[404630833,1770358238648,-151.548715,0.000219,2]
[404630834,1770358238658,-151.548707,0.000219,2]
[404630835,1770358238668,-500.0,0.00021917,2]
[404630836,1770358238679,-500.0,0.00021917,2]
[404630837,1770358238688,-181.45078903,0.00021917,2]
[404630838,1770358238698,-500.0,0.00021917,2]
[404630839,1770358238708,-739.767434,0.00021918,2]
[404630840,1770358238717,-739.767434,0.00021918,2]
[404630841,1770358238727,-739.767434,0.00021918,2]
[404630842,1770358238736,-739.767434,0.00021918,2]
[404630843,1770358238746,-739.767434,0.00021918,2]
[404630844,1770358238756,-739.767434,0.00021918,2]
[404630845,1770358238765,-739.767434,0.00021918,2]
[404630846,1770358238775,-739.767434,0.00021918,2]
[404630847,1770358238784,-739.767434,0.00021918,2]
[404630848,1770358238794,-739.767434,0.00021918,2]
[404630849,1770358238803,-739.767434,0.00021918,2]
[404630850,1770358238813,-739.767434,0.00021918,2]
[404630851,1770358238822,-739.767434,0.00021918,2]
[404630852,1770358238832,-739.767434,0.00021918,2]
[404630853,1770358238841,-739.767434,0.00021918,2]
[404630854,1770358238851,-739.767434,0.00021918,2]
[404630855,1770358238861,-1545.4,0.00021999,2]
[404630856,1770358238871,-5000.0,0.00022,2]
[404630857,1770358238880,-739.767434,0.00022,2]
[404630858,1770358238890,-739.767434,0.00022,2]
[404630859,1770358238899,-739.767434,0.00022,2]
[404630860,1770358238909,-739.767444,0.00022,2]
[404630861,1770358238919,-482.7206671,0.00022066,2]
[404630862,1770358238930,-240.013057,0.00022367,2]
[404630863,1770358238940,-150.0,0.00022697,2]
[404630864,1770358238950,-150.0,0.00022697,2]
[404630865,1770358238959,-150.0,0.00022697,2]
[404630866,1770358238969,-2158.0,0.00022697,2]
[404630867,1770358238979,-1373.0,0.00022697,2]
[404630868,1770358238989,-420.0,0.00022697,2]
[404630869,1770358238999,-719.0,0.00022697,2]
[404630870,1770358239009,-420.0,0.00022697,2]
[404630871,1770358239019,-179.0,0.00022697,2]
[404630872,1770358239029,-1385.76,0.00022781,2]
[404630873,1770358239039,-720.0,0.0002299,10]
[404630874,1770358239049,-500.0,0.00023225,8]
[404630875,1770358239059,-240.013057,0.00023309,2]
[404630876,1770358239069,-500.0,0.00023417,9]
[404630877,1770358239079,-250.0,0.00023424,2]
[404630878,1770358239089,-250.0,0.00023424,2]
[404630879,1770358239099,-250.0,0.00023424,2]
[404630880,1770358239110,-266.50561328,0.00023424,2]
[404630881,1770358239120,-209.40437684,0.00023424,2]
[404630882,1770358239130,-250.0,0.00023424,2]
[404630883,1770358239140,-217.15233878,0.00023424,2]
[404630884,1770358239150,-250.0,0.00023424,2]
[404630885,1770358239160,-225.18697532,0.00023424,2]
[404630886,1770358239170,-250.0,0.00023424,2]
[404630887,1770358239181,-233.51889341,0.00023424,2]
[404630888,1770358239191,-242.15909246,0.00023424,2]
[404630889,1770358239200,-251.11897888,0.00023424,2]
[404630890,1770358239210,-260.4103811,0.00023424,2]
[404630891,1770358239220,-270.0455652,0.00023424,2]
[404630892,1770358239229,-1385.76,0.00023464,2]
[404630893,1770358239239,-1545.4,0.00023495,2]
[404630894,1770358239248,-222.14599815,0.00023605,2]
[404630895,1770358239257,-270.61419432,0.00024,2]
[404630896,1770358239267,-205.83713557,0.00024,2]
[404630897,1770358239276,-516.42918377,0.00024154,2]
[404630898,1770358239286,-1817.7749713,0.00024165,2]
[404630899,1770358239296,-268.56143461,0.00024165,2]
[404630900,1770358239305,-1385.76,0.00024168,2]
[404630901,1770358239426,-6588.17470424,0.00024186,2]
[404630902,1770358239439,-240.013057,0.0002425,2]
[404630903,1770358239449,-1041.66666667,0.00024275,10]
[404630904,1770358239458,-482.7206671,0.00024295,2]
[404630905,1770358239468,-160.0,0.00024447,3]
[404630906,1770358239477,-150.0,0.00024658,2]
[404630907,1770358239488,-239.0612807,0.00024658,2]
[404630908,1770358239497,-1166.374558,0.0002466,5]
[404630909,1770358239506,-1000.0,0.0002468,5]
[404630910,1770358239516,-6746.48,0.0002469,10]
[404630911,1770358239526,-5673.41,0.00024693,10]
[404630912,1770358239535,-9714.93,0.00024693,10]
[404630913,1770358239545,-1000.0,0.000247,5]
[404630914,1770358239555,-1545.4,0.00024719,2]
[404630915,1770358239564,-1000.0,0.0002472,5]
[404630916,1770358239574,-1000.0,0.0002474,5]
[404630917,1770358239584,-1000.0,0.0002476,5]
[404630918,1770358239594,-1000.0,0.0002478,5]
[404630919,1770358239605,-8095.78,0.0002479,10]
[404630920,1770358239615,-1000.0,0.000248,5]
[404630921,1770358239624,-160.0,0.00024869,4]
[404630922,1770358239634,-372.64,0.000249,7]
[404630923,1770358239644,-1220.686881,0.0002498,5]
[404630924,1770358239654,-1545.4,0.00024989,2]
[404630925,1770358239664,-679.41,0.0002499,3]
[404630926,1770358239674,-1545.4,0.00024999,2]
[404630927,1770358239687,-1545.4,0.00024999,2]
[404630928,1770358239697,-1545.4,0.00024999,2]
[404630929,1770358239707,-1545.4,0.00024999,2]
[404630930,1770358239716,-991.09,0.00025,2]
[404630931,1770358239725,-50139.03262268,0.00025,30]
[404630932,1770358239734,-5000.0,0.00025,2]
[404630933,1770358239744,-22631.0,0.00025,2]
[404630934,1770358239753,-1041.66666667,0.00025,30]
[404630936,1770358239763,-1339.49,0.00025,14]
[404630937,1770358239773,-200.0,0.00025,17]
[404630938,1770358239783,-3769.21720845,0.00025,7]
[404630939,1770358239793,-1000.0,0.00025,5]
[404630940,1770358239802,-240.013057,0.00025192,2]
[404630941,1770358239812,-1545.4,0.00025199,2]
[404630942,1770358239821,-582.51528868,0.000252,5]
[404630943,1770358239831,-250.0,0.00025205,2]
[404630944,1770358239840,-864.0,0.00025289,10]
[404630946,1770358239850,-160.0,0.00025291,5]
[404630948,1770358239859,-900.0,0.00025469,3]
[404630950,1770358239868,-525.0,0.000256,3]
[404630951,1770358239877,-251.54767438,0.00025605,2]
[404630952,1770358239886,-150.0,0.00025697,2]
[404630953,1770358239895,-150.0,0.00025697,2]
[404630955,1770358239904,-150.0,0.00025697,2]
[404630957,1770358239913,-2158.0,0.00025697,2]
[404630959,1770358239923,-1373.0,0.00025697,2]
[404630961,1770358239934,-420.0,0.00025697,2]
[404630963,1770358239944,-719.0,0.00025697,2]
[404630964,1770358239953,-339.007,0.00025697,2]
[404630966,1770358239962,-165.326,0.00025697,2]
[404630967,1770358239972,-160.0,0.00025713,6]
[404630968,1770358239982,-301.87243735,0.00025753,2]
[404630969,1770358239992,-204.54,0.00025769,2]
[404630970,1770358240001,-1041.66666667,0.000258,30]
[404630971,1770358240011,-426.9367498,0.0002599,2]
[404630972,1770358240020,-469.34052494,0.0002599,2]
[404630973,1770358240030,-1545.4,0.00025998,2]
[404630974,1770358240040,-1545.4,0.00025999,2]
[404630975,1770358240049,-1545.4,0.00025999,2]
[404630976,1770358240059,-1545.4,0.00025999,2]
[404630977,1770358240070,-1545.4,0.00025999,2]
[404630978,1770358240079,-1545.4,0.00025999,2]
[404630979,1770358240089,-1545.4,0.00025999,2]
[404630980,1770358240099,-1545.4,0.00025999,2]
[404630981,1770358240108,-1545.4,0.00025999,2]
[404630982,1770358240118,-1545.4,0.00025999,2]
[404630983,1770358240128,-1545.4,0.00025999,2]
[404630984,1770358240138,-1545.4,0.00025999,2]
[404630985,1770358240148,-1545.4,0.00025999,2]
[404630986,1770358240158,-1545.4,0.00025999,2]
[404630987,1770358240167,-1545.48377906,0.00025999,2]
[404630988,1770358240177,-17331.66842381,0.00026,2]
[404630989,1770358240188,-161.0,0.00026,5]
[404630990,1770358240198,-160.05,0.00026,7]
[404630991,1770358240208,-531.24079953,0.00026,2]
[404630992,1770358240218,-272272.1714091,0.00026,30]
[404630993,1770358240228,-1041.66666667,0.00026,30]
[404630994,1770358240238,-200.0,0.00026,20]
[404630995,1770358240247,-487.0,0.00026,2]
[404630996,1770358240257,-487.0,0.00026,2]
[404630997,1770358240267,-487.0,0.00026,2]
[404630998,1770358240275,-487.0,0.00026,2]
[404630999,1770358240285,-487.0,0.00026,2]
[404631000,1770358240295,-487.0,0.00026,2]
[404631001,1770358240304,-487.0,0.00026,2]
[404631002,1770358240314,-487.0,0.00026,2]
[404631003,1770358240323,-487.0,0.00026,2]
[404631004,1770358240332,-487.0,0.00026,2]
[404631005,1770358240341,-487.0,0.00026,2]
[404631006,1770358240351,-487.0,0.00026,2]
[404631007,1770358240360,-487.0,0.00026,2]
[404631008,1770358240379,-487.0,0.00026,2]
[404631009,1770358240389,-487.0,0.00026,2]
[404631010,1770358240399,-487.0,0.00026,2]
[404631011,1770358240409,-487.0,0.00026,2]
[404631012,1770358240419,-487.0,0.00026,2]
[404631013,1770358240430,-681.08,0.00026,2]
[404631014,1770358240440,-300.0,0.00026116,2]
[404631015,1770358240450,-240.013057,0.00026133,2]
[404631016,1770358240460,-160.0,0.00026135,7]
[404631017,1770358240470,-195.15753522,0.0002616,2]
[404631018,1770358240480,-151.0,0.000265,16]
[404631019,1770358240490,-151.0,0.000265,11]
[404631020,1770358240500,-482.7206671,0.00026523,2]
[404631021,1770358240510,-160.0,0.00026557,8]
[404631022,1770358240520,-372.64,0.000266,7]
[404631023,1770358240530,-1339.49,0.000267,14]
[404631024,1770358240539,-151.0,0.000267,18]
[404631025,1770358240549,-151.0,0.000267,17]
[404631026,1770358240559,-160.0,0.00026979,9]
[404631027,1770358240568,-200.0,0.00027,23]
[404631028,1770358240578,-151.0,0.00027,20]
[404631029,1770358240588,-151.0,0.00027,18]
[404631030,1770358240599,-240.013057,0.00027075,2]
[404631031,1770358240610,-151.0,0.000271,12]
[404631032,1770358240620,-72404.79433904,0.00027169,2]
[404631033,1770358240637,-13309.68693672,0.00027169,2]
[404631137,1770358246342,-280.03725112,0.00023424,2]
[404631139,1770358246352,-290.39862941,0.00023424,2]
[404631141,1770358246361,-301.1433787,0.00023424,2]
[404631143,1770358246372,-58.25401029,0.00027169,2]
[404631649,1770358708018,-190.75205848,0.00039441,120]
[404631650,1770358708047,-167.90249283,0.00039441,120]
[404631651,1770358708073,-185.00517868,0.00039441,120]
[404631652,1770358708101,-167.90249283,0.00039441,120]
[404631653,1770358708126,-159.34263903,0.00039441,120]
[404631654,1770358708302,-167.90249283,0.00039441,120]
[404631655,1770358708331,-167.90249283,0.00039441,120]
[404631656,1770358708362,-167.90249283,0.00039441,120]
[404631657,1770358708390,-167.90249283,0.00039441,120]
[404631658,1770358708418,-167.90249283,0.00039441,120]
[404631659,1770358708444,-167.90249282,0.00039441,120]
[404631660,1770358708470,-1467.47,0.00039441,31]
[404631661,1770358708498,-3600652.68610269,0.00039441,30]
[404631662,1770358708523,-1040.14312294,0.00039441,120]
[404631663,1770358708548,-1022.61439736,0.00039441,30]
[404631664,1770358708573,-152.86315677,0.00039441,120]
[404631665,1770358708601,-229.940455,0.00039441,30]
[404631666,1770358708628,-304.72415004,0.00039441,30]
[404631667,1770358708654,-159.95770398,0.00039441,60]
[404631668,1770358708678,-1298.09845923,0.00039441,35]
[404631669,1770358708703,-3317.52520929,0.00039441,30]
[404631670,1770358708728,-162.05082949,0.00039441,120]
[404631671,1770358708756,-203.2270395,0.00039441,120]
[404631672,1770358708781,-165.47085185,0.00039441,30]
[404631673,1770358708807,-824.01948186,0.00039441,120]
[404631674,1770358708832,-179.57944477,0.00039441,30]
[404631675,1770358708856,-261.61810529,0.00039441,31]
[404631676,1770358708880,-162.24445234,0.00039441,30]
[404631677,1770358708904,-975.17622445,0.00039441,120]
[404631678,1770358708927,-527.24527272,0.00039441,120]
[404631679,1770358708951,-325.14967276,0.00039441,120]
[404631680,1770358708976,-213.02683704,0.00039441,120]
[404631681,1770358708999,-159.58449368,0.00039441,120]
[404631682,1770358709024,-259.56156764,0.00039441,60]
[404631683,1770358709049,-406.35272629,0.00039441,60]
[404631684,1770358709075,-913.80046438,0.00039441,30]
[404631685,1770358709101,-432.22945664,0.00039441,120]
[404631686,1770358709126,-222.94014253,0.00039441,30]
[404631687,1770358709152,-352.85885311,0.00039441,30]
[404631688,1770358709177,-215.04245467,0.00039441,30]
[404631689,1770358709202,-336.60072549,0.00039441,33]
[404631690,1770358709229,-214.88725439,0.00039441,31]
[404631691,1770358709255,-1430.475468,0.00039441,30]
[404631692,1770358709280,-281.0,0.00039441,120]
[404631693,1770358709304,-150.13194405,0.00039441,120]
[404631694,1770358709330,-482.4527,0.00039441,120]
[404631695,1770358709356,-482.4527,0.00039441,120]
[404631696,1770358709381,-154.39733951,0.00039441,120]
[404631697,1770358709406,-167.4623158,0.00039441,120]
[404631698,1770358709432,-166.10588573,0.00039441,120]